fUST/lending_fUST_20250605
["ID","MTS","AMOUNT","RATE_DAILY","PERIOD"]
[364393290,1749089446046,-1800.0,0.00020553,2]
[364393292,1749089446057,-1800.0,0.00020553,2]
[364393295,1749089446067,-5000.0,0.00020553,2]
[364393297,1749089446076,-1800.0,0.00020553,2]
[364393299,1749089446087,-1800.0,0.00020553,2]
[364393301,1749089446096,-1800.0,0.00020553,2]
[364393303,1749089446106,-1800.0,0.00020553,2]
[364393305,1749089446115,-1800.0,0.00020553,2]
[364393307,1749089446124,-1800.0,0.00020553,2]
[364393309,1749089446133,-1800.0,0.00020553,2]
[364393311,1749089446143,-1800.0,0.00020553,2]
[364393313,1749089446153,-1562.78152248,0.00020553,2]
[364393315,1749089446163,-1339.11871126,0.00020555,3]
[364393317,1749089446173,-1840.67,0.000206,2]
[364393319,1749089446183,-1643.98,0.000206,2]
[364393321,1749089446192,-26659.4,0.000206,2]
[364393323,1749089446202,-500.0,0.000207,2]
[364393325,1749089446211,-160.33666408,0.000207,2]
[364393327,1749089446221,-575.67400562,0.000207,2]
[364393329,1749089446231,-440.0,0.00020711,2]
[364393331,1749089446241,-576.27,0.00020711,2]
[364393333,1749089446250,-1325.23,0.00020711,2]
[364393335,1749089446260,-1552.48,0.00020711,2]
[364393336,1749089446270,-440.0,0.00020711,2]
[364393339,1749089446281,-440.0,0.00020711,2]
[364393341,1749089446292,-440.0,0.00020711,2]
[364393343,1749089446301,-916.66,0.00020711,2]
[364393344,1749089446311,-810.31,0.00020711,2]
[364393347,1749089446321,-440.0,0.00020712,2]
[364393349,1749089446332,-533.32,0.00020712,2]
[364393352,1749089446342,-517.76,0.00020712,2]
[364393355,1749089446351,-569.08,0.00020712,2]
[364393358,1749089446361,-640.11,0.00020712,2]
[364393361,1749089446371,-678.77,0.00020712,2]
[364393363,1749089446381,-440.0,0.00020712,2]
[364393365,1749089446392,-1228.35,0.00020712,2]
[364393368,1749089446402,-1161.99,0.00020712,2]
[364393370,1749089446412,-440.0,0.00020712,2]
[364393372,1749089446423,-1339.11871126,0.00020762,3]
[364393374,1749089446433,-587.0,0.00020766,2]
[364393376,1749089446443,-1339.11871126,0.00020969,4]
[364393378,1749089446453,-440.0,0.00020985,2]
[364393380,1749089446463,-576.27,0.00020985,2]
[364393382,1749089446473,-1325.23,0.00020985,2]
[364393384,1749089446483,-1552.48,0.00020985,2]
[364393386,1749089446493,-440.0,0.00020985,2]
[364393387,1749089446503,-440.0,0.00020985,2]
[364393390,1749089446513,-440.0,0.00020985,2]
[364393392,1749089446523,-916.66,0.00020985,2]
[364393394,1749089446534,-810.31,0.00020985,2]
[364393395,1749089446544,-440.0,0.00020986,2]
[364393398,1749089446553,-533.32,0.00020986,2]
[364393400,1749089446563,-517.76,0.00020986,2]
[364393401,1749089446573,-569.08,0.00020986,2]
[364393403,1749089446583,-640.11,0.00020986,2]
[364393405,1749089446594,-678.77,0.00020986,2]
[364393407,1749089446603,-299.89,0.00020986,2]
[364393409,1749089446613,-1228.35,0.00020986,2]
[364393411,1749089446622,-1161.99,0.00020986,2]
[364393413,1749089446633,-440.0,0.00020986,2]
[364393415,1749089446643,-151.0,0.00020987,2]
[364393417,1749089446653,-151.0,0.00020988,2]
[364393419,1749089446663,-151.0,0.00020988,2]
[364393422,1749089446673,-5000.0,0.00021101,2]
[364393424,1749089446683,-1400.0,0.00021164,2]
[364393425,1749089446693,-1339.11871126,0.00021176,4]
[364393427,1749089446702,-1000.0,0.00021248,2]
[364393429,1749089446711,-361.44290979,0.00021259,2]
[364393431,1749089446721,-576.27,0.00021259,2]
[364393433,1749089446731,-1325.23,0.00021259,2]
[364393435,1749089446741,-1552.48,0.00021259,2]
[364393437,1749089446750,-440.0,0.00021259,2]
[364393439,1749089446764,-440.0,0.00021259,2]
[364393441,1749089446773,-440.0,0.00021259,2]
[364393443,1749089446784,-916.66,0.00021259,2]
[364393445,1749089446793,-810.31,0.00021259,2]
[364393447,1749089446803,-440.0,0.0002126,2]
[364393449,1749089446812,-533.32,0.0002126,2]
[364393452,1749089446822,-517.76,0.0002126,2]
[364393453,1749089446831,-569.08,0.0002126,2]
[364393455,1749089446840,-640.11,0.0002126,2]
[364393457,1749089446850,-678.77,0.0002126,2]
[364393459,1749089446859,-1228.35,0.0002126,2]
[364393461,1749089446869,-1161.99,0.0002126,2]
[364393463,1749089446879,-440.0,0.0002126,2]
[364393465,1749089446888,-3029.14524951,0.00021287,2]
[364393467,1749089446897,-2781.25,0.00021293,2]
[364393469,1749089446906,-5000.0,0.00021293,7]
[364393471,1749089446915,-3343.75,0.00021293,30]
[364393473,1749089446925,-1339.11871126,0.00021383,5]
[364393475,1749089446934,-343624.50721,0.00021533,2]
[364393477,1749089446944,-576.27,0.00021533,2]
[364393479,1749089446953,-1325.23,0.00021533,2]
[364393481,1749089446963,-1552.48,0.00021533,2]
[364393483,1749089446972,-440.0,0.00021533,2]
[364393485,1749089446981,-440.0,0.00021533,2]
[364393487,1749089446990,-440.0,0.00021533,2]
[364393489,1749089447000,-916.66,0.00021533,2]
[364393490,1749089447009,-810.31,0.00021533,2]
[364393492,1749089447019,-440.0,0.00021534,2]
[364393494,1749089447028,-533.32,0.00021534,2]
[364393496,1749089447037,-517.76,0.00021534,2]
[364393498,1749089447046,-569.08,0.00021534,2]
[364393500,1749089447056,-640.11,0.00021534,2]
[364393502,1749089447067,-678.77,0.00021534,2]
[364393504,1749089447077,-1228.35,0.00021534,2]
[364393506,1749089447088,-1161.99,0.00021534,2]
[364393508,1749089447098,-440.0,0.00021534,2]
[364393510,1749089447108,-500.0,0.00021573,2]
[364393512,1749089447117,-500.96745623,0.00021573,2]
[364393514,1749089447127,-500.0,0.00021573,2]
[364393516,1749089447138,-211.58036217,0.00021573,2]
[364393518,1749089447148,-500.0,0.00021573,2]
[364393520,1749089447158,-501.12619978,0.00021573,2]
[364393522,1749089447169,-600.0,0.00021573,2]
[364393524,1749089447178,-500.74783678,0.00021573,2]
[364393526,1749089447188,-501.60711847,0.00021573,2]
[364393528,1749089447197,-500.88600089,0.00021573,2]
[364393530,1749089447206,-500.0,0.00021573,2]
[364393532,1749089447216,-500.0,0.00021573,2]
[364393534,1749089447226,-500.0,0.00021573,2]
[364393536,1749089447235,-1339.11871126,0.0002159,5]
[364393538,1749089447245,-5000.0,0.00021649,2]
[364393540,1749089447255,-501.0324746,0.00021796,2]
[364393542,1749089447264,-1339.11871126,0.00021797,6]
[364393544,1749089447274,-1005.21,0.000218,4]
[364393546,1749089447285,-1006.2,0.000218,7]
[364393548,1749089447296,-576.27,0.00021807,2]
[364393550,1749089447305,-1325.23,0.00021807,2]
[364393552,1749089447316,-1552.48,0.00021807,2]
[364393554,1749089447327,-245.73245644,0.00021807,2]
[364393556,1749089447336,-440.0,0.00021807,2]
[364393557,1749089447346,-440.0,0.00021807,2]
[364393559,1749089447358,-916.66,0.00021807,2]
[364393561,1749089447368,-810.31,0.00021807,2]
[364393563,1749089447377,-440.0,0.00021808,2]
[364393565,1749089447387,-533.32,0.00021808,2]
[364393567,1749089447397,-517.76,0.00021808,2]
[364393569,1749089447408,-569.08,0.00021808,2]
[364393571,1749089447417,-640.11,0.00021808,2]
[364393573,1749089447427,-678.77,0.00021808,2]
[364393575,1749089447437,-1228.35,0.00021808,2]
[364393577,1749089447447,-1161.99,0.00021808,2]
[364393579,1749089447456,-562.28401965,0.00021808,2]
[364393581,1749089447466,-184.5397067,0.00021876,2]
[364393583,1749089447476,-505.67107245,0.00021917,2]
[364393585,1749089447486,-215.0738,0.00021922,2]
[364393587,1749089447496,-250.0,0.00021955,2]
[364393589,1749089447506,-151.0,0.00021988,7]
[364393591,1749089447516,-151.0,0.00021988,7]
[364393593,1749089447526,-151.0,0.00022,7]
[364393595,1749089447535,-26659.4,0.00022,2]
[364393597,1749089447545,-204.0,0.00022,2]
[364393599,1749089447555,-1339.11871126,0.00022003,6]
[364393613,1749089447682,-576.27,0.00022081,2]
[364393615,1749089447692,-1325.23,0.00022081,2]
[364393616,1749089447702,-1552.48,0.00022081,2]
[364393617,1749089447711,-440.0,0.00022081,2]
[364393618,1749089447720,-440.0,0.00022081,2]
[364393619,1749089447730,-916.66,0.00022081,2]
[364393620,1749089447740,-810.31,0.00022081,2]
[364393621,1749089447749,-440.0,0.00022082,2]
[364393622,1749089447758,-533.32,0.00022082,2]
[364393623,1749089447768,-517.76,0.00022082,2]
[364393624,1749089447777,-569.08,0.00022082,2]
[364393625,1749089447786,-640.11,0.00022082,2]
[364393626,1749089447796,-678.77,0.00022082,2]
[364393627,1749089447806,-1228.35,0.00022082,2]
[364393628,1749089447815,-1161.99,0.00022082,2]
[364393629,1749089447825,-1643.98,0.000221,7]
[364393630,1749089447834,-1000.0,0.00022121,2]
[364393631,1749089447843,-1003.00602574,0.00022121,2]
[364393632,1749089447852,-500.54533957,0.00022121,2]
[364393633,1749089447862,-1200.0,0.00022121,2]
[364393634,1749089447871,-1000.0,0.00022121,2]
[364393636,1749089447882,-502.46747546,0.00022121,2]
[364393638,1749089447893,-1000.0,0.00022121,2]
[364393640,1749089447903,-204.0,0.00022192,7]
[364393642,1749089447912,-5000.0,0.00022197,2]
[364393644,1749089447922,-151.0,0.000222,9]
[364393646,1749089447932,-1840.67,0.000222,7]
[364393648,1749089447942,-1339.11871126,0.0002221,6]
[364393650,1749089447951,-1400.0,0.0002226,2]
[364393652,1749089447961,-576.27,0.00022355,2]
[364393654,1749089447971,-1325.23,0.00022355,2]
[364393656,1749089447981,-1552.48,0.00022355,2]
[364393658,1749089447991,-440.0,0.00022355,2]
[364393660,1749089448001,-440.0,0.00022355,2]
[364393662,1749089448010,-916.66,0.00022355,2]
[364393664,1749089448020,-810.31,0.00022355,2]
[364393666,1749089448030,-440.0,0.00022356,2]
[364393668,1749089448040,-533.32,0.00022356,2]
[364393670,1749089448050,-517.76,0.00022356,2]
[364393672,1749089448061,-569.08,0.00022356,2]
[364393674,1749089448071,-640.11,0.00022356,2]
[364393676,1749089448081,-678.77,0.00022356,2]
[364393678,1749089448092,-1228.35,0.00022356,2]
[364393680,1749089448102,-1161.99,0.00022356,2]
[364393682,1749089448113,-1339.11871126,0.00022417,7]
[364393684,1749089448124,-151.0,0.00022536,7]
[364393686,1749089448135,-225.115004,0.00022536,7]
[364393688,1749089448145,-160.982791,0.00022575,2]
[364393690,1749089448155,-389.340515,0.00022603,2]
[364393692,1749089448164,-1339.11871126,0.00022624,7]
[364393694,1749089448175,-576.27,0.00022629,2]
[364393696,1749089448185,-1325.23,0.00022629,2]
[364393698,1749089448195,-1552.48,0.00022629,2]
[364393700,1749089448205,-113.25327417,0.00022629,2]
[364393711,1749089448304,-326.74672583,0.00022629,2]
[364393712,1749089448314,-440.0,0.00022629,2]
[364393715,1749089448325,-916.66,0.00022629,2]
[364393717,1749089448334,-518.32567881,0.00022629,2]
[364393719,1749089448347,-291.98432119,0.00022629,2]
[364393721,1749089448357,-440.0,0.0002263,2]
[364393723,1749089448367,-533.32,0.0002263,2]
[364393725,1749089448377,-517.76,0.0002263,2]
[364393726,1749089448388,-569.08,0.0002263,2]
[364393728,1749089448403,-640.11,0.0002263,2]
[364393730,1749089448413,-678.77,0.0002263,2]
[364393733,1749089448423,-1228.35,0.0002263,2]
[364393734,1749089448433,-268.60531667,0.0002263,2]
[364393743,1749089448510,-550.45,0.00017424,2]
[364393745,1749089448521,-550.45,0.00017698,2]
[364393747,1749089448531,-131.4738286,0.00017972,2]
[364393778,1749089448832,-440.0,0.00017423,2]
[364393780,1749089448842,-440.0,0.00017697,2]
[364393782,1749089448851,-418.9761714,0.00017972,2]
[364393784,1749089448862,-550.45,0.00018246,2]
[364393786,1749089448871,-550.45,0.0001852,2]
[364393788,1749089448881,-550.45,0.00018794,2]
[364393790,1749089448891,-550.45,0.00019068,2]
[364393792,1749089448902,-12675.11581177,0.00019146,2]
[364393794,1749089448912,-550.45,0.00019342,2]
[364393796,1749089448922,-550.45,0.00019616,2]
[364393798,1749089448932,-550.45,0.0001989,2]
[364393800,1749089448943,-550.45,0.00020164,2]
[364393802,1749089448953,-550.45,0.00020438,2]
[364393803,1749089448963,-500.0,0.00020599,2]
[364393805,1749089448972,-500.0,0.00020599,2]
[364393807,1749089448982,-500.0,0.00020599,2]
[364393809,1749089448993,-500.0,0.00020599,2]
[364393811,1749089449003,-500.0,0.00020599,2]
[364393813,1749089449013,-500.0,0.00020599,2]
[364393815,1749089449025,-500.0,0.00020599,2]
[364393817,1749089449035,-500.0,0.00020599,2]
[364393819,1749089449044,-500.0,0.00020599,2]
[364393821,1749089449054,-500.0,0.00020599,2]
[364393823,1749089449065,-500.0,0.00020599,2]
[364393825,1749089449074,-500.0,0.00020599,2]
[364393827,1749089449084,-417.55342908,0.00020599,2]
[364393829,1749089449094,-500.0,0.00020599,2]
[364393831,1749089449104,-550.45,0.00020712,2]
[364393833,1749089449114,-550.45,0.00020986,2]
[364393835,1749089449124,-550.45,0.0002126,2]
[364393837,1749089449134,-550.45,0.00021534,2]
[364393839,1749089449144,-550.45,0.00021808,2]
[364393841,1749089449153,-550.45,0.00022082,2]
[364393843,1749089449164,-550.45,0.00022356,2]
[364393845,1749089449175,-893.38468333,0.0002263,2]
[364393847,1749089449185,-550.45,0.0002263,2]
[364393849,1749089449195,-1365.19125899,0.00022668,2]
[364393851,1749089449206,-1800.0,0.00022668,2]
[364393853,1749089449216,-503.62233692,0.00022668,2]
[364393855,1749089449227,-1500.0,0.00022668,2]
[364393857,1749089449237,-823.0,0.00022671,2]
[364393859,1749089449247,-151.0,0.000227,7]
[364393861,1749089449257,-760.504832,0.00022721,3]
[364393863,1749089449268,-5000.0,0.00022745,2]
[364393865,1749089449279,-1339.11871126,0.00022831,8]
[364393868,1749089449292,-257.57402951,0.000229,2]
[364393870,1749089449303,-425.20802244,0.000229,2]
[364393872,1749089449313,-576.27,0.00022903,2]
[364393873,1749089449323,-1325.23,0.00022903,2]
[364393876,1749089449334,-1552.48,0.00022903,2]
[364393877,1749089449344,-440.0,0.00022903,2]
[364393879,1749089449354,-440.0,0.00022903,2]
[364393881,1749089449365,-916.66,0.00022903,2]
[364393883,1749089449377,-810.31,0.00022903,2]
[364393885,1749089449387,-440.0,0.00022904,2]
[364393887,1749089449396,-533.32,0.00022904,2]
[364393889,1749089449405,-517.76,0.00022904,2]
[364393891,1749089449415,-569.08,0.00022904,2]
[364393893,1749089449424,-640.11,0.00022904,2]
[364393895,1749089449434,-678.77,0.00022904,2]
[364393897,1749089449443,-1228.35,0.00022904,2]
[364393899,1749089449453,-1161.99,0.00022904,2]
[364393901,1749089449463,-550.45,0.00022904,2]
[364393903,1749089449473,-8272.27884438,0.00023,2]
[364393905,1749089449483,-14136.67715227,0.00023,2]
[364393907,1749089449493,-18130.0388596,0.00023,5]
[364393910,1749089449505,-479.03479232,0.00023,5]
[364393912,1749089449517,-1568.80726486,0.00023,5]
[364393922,1749089449602,-7878.69596,0.00017178,2]
[364393924,1749089449613,-440.0,0.00017971,2]
[364393926,1749089449623,-300.0,0.00017971,2]
[364393937,1749089449722,-9978.19765551,0.00023,5]
[364393939,1749089449733,-15078.48497291,0.00023,2]
[364393941,1749089449743,-1445.45200185,0.00023,20]
[364393943,1749089449754,-2289.99998988,0.00023,20]
[364393945,1749089449765,-33858.2541518,0.00023,20]
[364393948,1749089449778,-372.41081233,0.00023,20]
[364396474,1749089478441,286.306111,0.00013699,2]
[364396865,1749090064971,1087.0,0.00025,120]
[364396905,1749090523381,160.6180017,0.00016,2]
[364397002,1749090637826,-235.22763469,0.00017319,2]
[364397003,1749090637835,-484.00177407,0.00017321,2]
[364397004,1749090637846,-300.0,0.00017419,2]
[364397005,1749090637855,-440.0,0.0001742,2]
[364397006,1749090637864,-440.0,0.0001742,2]
[364397007,1749090637873,-440.0,0.0001742,2]
[364397008,1749090637882,-440.0,0.0001742,2]
[364397009,1749090637891,-942.05,0.0001742,2]
[364397011,1749090637901,-1228.62,0.0001742,2]
[364397013,1749090637910,-440.0,0.0001742,2]
[364397015,1749090637919,-440.0,0.0001742,2]
[364397017,1749090637928,-440.0,0.0001742,2]
[364397018,1749090637938,-442.068575,0.0001742,2]
[364397019,1749090637946,-442.41055426,0.0001742,2]
[364397020,1749090637956,-440.0,0.0001742,2]
[364397021,1749090637966,-440.0,0.0001742,2]
[364397022,1749090637975,-928.24,0.0001742,2]
[364397023,1749090637985,-440.0,0.0001742,2]
[364397025,1749090637994,-441.0611337,0.00017421,2]
[364397027,1749090638003,-577.60838638,0.00017421,2]
[364397028,1749090638012,-449.00145525,0.00017421,2]
[364397029,1749090638022,-440.0,0.00017421,2]
[364397030,1749090638031,-436.00838907,0.00017421,2]
[364397031,1749090638041,-440.0,0.00017421,2]
[364397033,1749090638050,-440.0,0.00017421,2]
[364397034,1749090638060,-448.22430061,0.00017421,2]
[364397035,1749090638069,-440.0,0.00017421,2]
[364397036,1749090638078,-500.0,0.00017421,2]
[364397037,1749090638088,-440.0,0.00017421,2]
[364397038,1749090638098,-442.37734844,0.00017421,2]
[364397039,1749090638108,-440.0,0.00017421,2]
[364397040,1749090638117,-443.53512227,0.00017421,2]
[364397041,1749090638126,-437.41024276,0.00017421,2]
[364397042,1749090638136,-430.0,0.00017421,2]
[364397043,1749090638145,-500.0,0.00017421,2]
[364397045,1749090638154,-445.62114431,0.00017421,2]
[364397047,1749090638163,-440.0,0.00017421,2]
[364397049,1749090638173,-440.0,0.00017421,2]
[364397051,1749090638182,-452.99312155,0.00017421,2]
[364397053,1749090638191,-440.0,0.00017421,2]
[364397055,1749090638200,-440.0,0.00017421,2]
[364397057,1749090638210,-450.25460389,0.00017421,2]
[364397059,1749090638219,-440.0,0.00017421,2]
[364397061,1749090638229,-441.24251154,0.00017421,2]
[364397063,1749090638239,-437.74999912,0.00017421,2]
[364397065,1749090638248,-440.0,0.00017421,2]
[364397067,1749090638257,-440.0,0.00017421,2]
[364397069,1749090638267,-435.19000627,0.00017421,2]
[364397071,1749090638276,-440.0,0.00017421,2]
[364397073,1749090638285,-440.0,0.00017421,2]
[364397075,1749090638295,-440.66331839,0.00017421,2]
[364397077,1749090638305,-440.0,0.00017421,2]
[364397079,1749090638314,-430.0,0.00017421,2]
[364397081,1749090638324,-439.20179328,0.00017421,2]
[364397083,1749090638333,-394.18284731,0.00017421,2]
[364397085,1749090638343,-437.69946063,0.00017421,2]
[364397088,1749090638353,-445.49434132,0.00017421,2]
[364397090,1749090638363,-440.0,0.00017421,2]
[364397092,1749090638372,-510.92187301,0.00017421,2]
[364397093,1749090638382,-436.30141164,0.00017421,2]
[364397095,1749090638391,-437.74864541,0.00017421,2]
[364397097,1749090638401,-430.0,0.00017421,2]
[364397099,1749090638410,-440.0,0.00017421,2]
[364397101,1749090638419,-430.0,0.00017421,2]
[364397104,1749090638429,-430.0,0.00017421,2]
[364397106,1749090638438,-440.0,0.00017421,2]
[364397108,1749090638448,-403.57702739,0.00017421,2]
[364397110,1749090638457,-440.0,0.00017421,2]
[364397111,1749090638467,-430.0,0.00017421,2]
[364397113,1749090638476,-406.42710809,0.00017421,2]
[364397116,1749090638486,-440.0,0.00017421,2]
[364397118,1749090638496,-440.0,0.00017421,2]
[364397120,1749090638505,-440.0,0.00017421,2]
[364397122,1749090638514,-440.0,0.00017421,2]
[364397124,1749090638523,-478.58392133,0.00017421,2]
[364397126,1749090638535,-482.3021733,0.00017421,2]
[364397128,1749090638544,-500.0,0.00017421,2]
[364397130,1749090638553,-492.19664993,0.00017421,2]
[364397132,1749090638562,-336.26844646,0.00017421,2]
[364397134,1749090638571,-283.47282221,0.00017421,2]
[364397136,1749090638581,-500.0,0.00017421,2]
[364397138,1749090638590,-343.56563757,0.00017421,2]
[364397140,1749090638600,-432.1869498,0.00017421,2]
[364397142,1749090638609,-440.0,0.00017421,2]
[364397144,1749090638620,-430.0,0.00017421,2]
[364397146,1749090638629,-440.0,0.00017421,2]
[364397148,1749090638639,-1668.29,0.00017421,2]
[364397150,1749090638648,-430.0,0.00017421,2]
[364397152,1749090638658,-440.0,0.00017421,2]
[364397154,1749090638667,-410.00519414,0.00017421,2]
[364397156,1749090638681,-440.0,0.00017421,2]
[364397158,1749090638690,-591.16,0.00017421,2]
[364397160,1749090638700,-402.43241891,0.00017421,2]
[364397162,1749090638710,-440.0,0.00017421,2]
[364397165,1749090638721,-430.0,0.00017421,2]
[364397166,1749090638730,-1968.95,0.00017421,2]
[364397169,1749090638740,-440.0,0.00017421,2]
[364397171,1749090638750,-435.38845963,0.00017421,2]
[364397173,1749090638759,-440.0,0.00017421,2]
[364397175,1749090638768,-434.16130122,0.00017421,2]
[364397177,1749090638777,-440.0,0.00017421,2]
[364397178,1749090638787,-435.41216637,0.00017421,2]
[364397180,1749090638796,-440.0,0.00017421,2]
[364397183,1749090638806,-440.0,0.00017421,2]
[364397185,1749090638816,-434.49119712,0.00017421,2]
[364397187,1749090638825,-436.01706513,0.00017421,2]
[364397189,1749090638834,-461.69901408,0.00017421,2]
[364397191,1749090638843,-440.0,0.00017421,2]
[364397193,1749090638853,-440.0,0.00017421,2]
[364397195,1749090638863,-440.0,0.00017421,2]
[364397197,1749090638872,-434.1209752,0.00017421,2]
[364397198,1749090638881,-406.81902848,0.00017421,2]
[364397200,1749090638891,-440.0,0.00017421,2]
[364397203,1749090638900,-440.0,0.00017421,2]
[364397205,1749090638910,-435.73432771,0.00017421,2]
[364397207,1749090638918,-435.90441497,0.00017421,2]
[364397208,1749090638928,-440.0,0.00017421,2]
[364397209,1749090638937,-430.0,0.00017421,2]
[364397210,1749090638947,-439.06624987,0.00017421,2]
[364397211,1749090638956,-440.0,0.00017421,2]
[364397212,1749090638965,-440.0,0.00017421,2]
[364397213,1749090638975,-440.0,0.00017421,2]
[364397214,1749090638984,-442.21390464,0.00017421,2]
[364397215,1749090638993,-593.51,0.00017421,2]
[364397216,1749090639002,-440.0,0.00017421,2]
[364397217,1749090639012,-437.31668921,0.00017421,2]
[364397218,1749090639021,-440.0,0.00017421,2]
[364397219,1749090639031,-430.0,0.00017421,2]
[364397220,1749090639040,-432.97726061,0.00017421,2]
[364397221,1749090639050,-400.0,0.00017421,2]
[364397222,1749090639059,-430.0,0.00017421,2]
[364397223,1749090639068,-439.3823299,0.00017421,2]
[364397224,1749090639077,-440.0,0.00017421,2]
[364397225,1749090639087,-445.07899095,0.00017421,2]
[364397226,1749090639095,-435.25960555,0.00017421,2]
[364397227,1749090639105,-406.17168255,0.00017421,2]
[364397229,1749090639114,-215.90743792,0.00017421,2]
[364397230,1749090639123,-430.0,0.00017421,2]
[364397231,1749090639132,-454.43103532,0.00017421,2]
[364397233,1749090639142,-446.64768734,0.00017421,2]
[364397235,1749090639151,-440.0,0.00017421,2]
[364397237,1749090639160,-440.0,0.00017421,2]
[364397239,1749090639169,-430.0,0.00017421,2]
[364397241,1749090639178,-440.0,0.00017421,2]
[364397243,1749090639188,-440.0,0.00017421,2]
[364397245,1749090639197,-440.0,0.00017421,2]
[364397247,1749090639206,-457.6146027,0.00017421,2]
[364397249,1749090639216,-440.0,0.00017421,2]
[364397251,1749090639225,-440.0,0.00017421,2]
[364397253,1749090639235,-440.0,0.00017421,2]
[364397255,1749090639244,-434.27014043,0.00017421,2]
[364397257,1749090639253,-440.0,0.00017421,2]
[364397259,1749090639262,-449.38124061,0.00017421,2]
[364397261,1749090639271,-440.0,0.00017421,2]
[364397263,1749090639281,-440.0,0.00017421,2]
[364397265,1749090639290,-440.0,0.00017421,2]
[364397267,1749090639299,-440.0,0.00017421,2]
[364397269,1749090639308,-440.0,0.00017421,2]
[364397271,1749090639318,-436.58043396,0.00017421,2]
[364397273,1749090639327,-550.07,0.00017421,2]
[364397276,1749090639339,-440.0,0.00017421,2]
[364397277,1749090639348,-440.0,0.00017421,2]
[364397280,1749090639358,-430.0,0.00017421,2]
[364397281,1749090639367,-500.0,0.00017421,2]
[364397284,1749090639377,-170.49010612,0.00017421,2]
[364397286,1749090639386,-1759.18,0.00017421,2]
[364397288,1749090639396,-430.0,0.00017421,2]
[364397290,1749090639405,-3636.84461733,0.00017421,2]
[364397292,1749090639415,-442.26035825,0.00017422,2]
[364397294,1749090639425,-459.54524491,0.00017422,2]
[364397296,1749090639435,-450.51132555,0.00017422,2]
[364397298,1749090639444,-271.79467864,0.00017422,2]
[364397300,1749090639453,-327.42237622,0.00017422,2]
[364397302,1749090639463,-430.0,0.00017422,2]
[364397304,1749090639472,-453.95227248,0.00017422,2]
[364397306,1749090639481,-442.0723754,0.00017422,2]
[364397308,1749090639491,-440.0,0.00017422,2]
[364397310,1749090639502,-453.3240402,0.00017422,2]
[364397312,1749090639512,-440.0,0.00017422,2]
[364397314,1749090639523,-506.45651446,0.00017422,2]
[364397316,1749090639532,-440.21589457,0.00017422,2]
[364397318,1749090639541,-472.84290823,0.00017422,2]
[364397320,1749090639551,-443.91168777,0.00017422,2]
[364397322,1749090639561,-468.09808212,0.00017422,2]
[364397324,1749090639571,-454.59611311,0.00017422,2]
[364397326,1749090639580,-464.22806016,0.00017422,2]
[364397328,1749090639590,-464.617592,0.00017422,2]
[364397330,1749090639600,-451.73668322,0.00017422,2]
[364397332,1749090639609,-435.4188828,0.00017422,2]
[364397334,1749090639619,-456.13114841,0.00017422,2]
[364397336,1749090639629,-440.0,0.00017422,2]
[364397338,1749090639639,-440.0,0.00017422,2]
[364397340,1749090639649,-440.0,0.00017422,2]
[364397342,1749090639658,-430.0,0.00017422,2]
[364397344,1749090639668,-434.90047896,0.00017422,2]
[364397346,1749090639682,-440.0,0.00017422,2]